fUSD/lending_fUSD_20240412
["ID","MTS","AMOUNT","RATE_DAILY","PERIOD"]
[322359429,1712964644782,-150.0,0.00042352,2]
[322359430,1712964644791,-150.0,0.00042463,2]
[322359431,1712964644800,-150.0,0.00042487,2]
[322359432,1712964644811,-157.041308,0.00042498,49]
[322359433,1712964644821,-1000.0,0.000425,2]
[322359434,1712964644830,-154.04276485,0.00042548,30]
[322359435,1712964644839,-1000.0,0.00042586,2]
[322359436,1712964644848,-170.36310898,0.0004262,30]
[322359437,1712964644859,-150.0,0.00042629,2]
[322359438,1712964644869,-305.58,0.00042639,2]
[322359439,1712964644879,-150.0,0.00042663,2]
[322359440,1712964644888,-150.0,0.00042686,2]
[322359441,1712964644898,-150.0,0.0004272,2]
[322359442,1712964644907,-535.0,0.00042739,7]
[322359443,1712964644916,-2065.62527197,0.00042766,2]
[322359444,1712964644926,-156.93547773,0.00042796,30]
[322359445,1712964644935,-157.041308,0.00042798,46]
[322359446,1712964644945,-150.0,0.00042802,2]
[322359447,1712964644954,-157.42754871,0.00042852,30]
[322359448,1712964644963,-962.68936662,0.0004289,10]
[322359449,1712964644972,-150.0,0.00042923,2]
[322359450,1712964644982,-150.0,0.00042925,2]
[322359451,1712964644991,-150.0,0.00042931,2]
[322359452,1712964645000,-150.0,0.00042935,2]
[322359453,1712964645009,-150.0,0.00042936,2]
[322359454,1712964645019,-170.36310898,0.00042963,30]
[322359455,1712964645028,-1250.0,0.00043,3]
[322359456,1712964645037,-150.0,0.00043039,2]
[322359457,1712964645046,-150.0,0.00043061,2]
[322359458,1712964645055,-150.0,0.00043081,2]
[322359459,1712964645064,-150.0,0.00043096,2]
[322359460,1712964645073,-150.0,0.00043131,2]
[322359461,1712964645082,-150.0,0.00043137,2]
[322359462,1712964645091,-150.0,0.00043144,2]
[322359463,1712964645101,-150.0,0.00043147,2]
[322359464,1712964645110,-150.0,0.00043157,2]
[322359465,1712964645119,-157.041308,0.00043198,47]
[322359466,1712964645128,-156.77647681,0.00043249,30]
[322359467,1712964645138,-150.0,0.00043258,2]
[322359468,1712964645147,-412.01,0.00043363,2]
[322359469,1712964645156,-150.0,0.00043367,2]
[322359470,1712964645165,-150.0,0.00043368,2]
[322359471,1712964645174,-156.07725532,0.00043385,30]
[322359472,1712964645183,-150.0,0.00043399,2]
[322359473,1712964645192,-1000.0,0.000434,7]
[322359474,1712964645201,-150.0,0.00043443,2]
[322359475,1712964645211,-150.0,0.00043461,2]
[322359476,1712964645221,-157.041308,0.00043498,50]
[322359477,1712964645230,-451.66,0.00043507,15]
[322359478,1712964645239,-150.0,0.00043536,2]
[322359479,1712964645248,-150.0,0.00043538,2]
[322359480,1712964645257,-150.0,0.00043549,2]
[322359481,1712964645267,-150.0,0.00043583,2]
[322359482,1712964645276,-150.0,0.00043595,2]
[322359483,1712964645285,-150.0,0.00043596,2]
[322359484,1712964645294,-156.93547773,0.00043603,30]
[322359485,1712964645303,-150.0,0.00043649,2]
[322359486,1712964645312,-150.0,0.00043661,2]
[322359487,1712964645321,-150.0,0.00043705,2]
[322359489,1712964645330,-150.0,0.00043707,2]
[322359491,1712964645339,-150.0,0.00043739,2]
[322359492,1712964645349,-150.0,0.0004375,2]
[322359493,1712964645358,-150.0,0.00043772,2]
[322359494,1712964645367,-150.0,0.00043782,2]
[322359495,1712964645376,-152.0,0.00043796,6]
[322359496,1712964645385,-157.041308,0.00043798,47]
[322359497,1712964645394,-150.0,0.00043815,2]
[322359498,1712964645403,-227.7,0.00043836,2]
[322359499,1712964645413,-3924.98,0.00043836,2]
[322359500,1712964645421,-150.0,0.00043845,2]
[322359501,1712964645430,-150.57288398,0.00043901,30]
[322359502,1712964645439,-536.0,0.00043972,7]
[322359503,1712964645448,-150.0,0.00044064,2]
[322359504,1712964645458,-157.06888665,0.00044079,30]
[322359505,1712964645467,-1000.0,0.000441,7]
[322359506,1712964645476,-150.0,0.00044135,2]
[322359507,1712964645486,-150.0,0.0004417,2]
[322359508,1712964645495,-645.05,0.00044188,10]
[322359509,1712964645505,-157.041308,0.00044198,47]
[322359510,1712964645514,-1500.0,0.00044228,2]
[322359511,1712964645523,-1500.0,0.00044253,2]
[322359512,1712964645532,-150.0,0.00044299,2]
[322359513,1712964645541,-150.0,0.00044312,2]
[322359514,1712964645551,-150.0,0.00044337,2]
[322359515,1712964645560,-150.0,0.00044362,2]
[322359516,1712964645569,-150.0,0.00044365,2]
[322359517,1712964645578,-150.0,0.0004438,2]
[322359518,1712964645588,-154.04276485,0.00044446,30]
[322359519,1712964645597,-150.0,0.00044467,2]
[322359520,1712964645606,-150.0,0.0004448,2]
[322359521,1712964645615,-157.041308,0.00044498,51]
[322359522,1712964645624,-150.0,0.00044509,2]
[322359523,1712964645633,-150.0,0.00044516,2]
[322359524,1712964645644,-150.0,0.00044535,2]
[322359525,1712964645654,-150.0,0.00044541,2]
[322359526,1712964645663,-150.0,0.00044583,2]
[322359527,1712964645672,-175.43771938,0.00044599,60]
[322359528,1712964645682,-150.0,0.00044607,2]
[322359529,1712964645846,-150.0,0.00044626,2]
[322359530,1712964645856,-153.0,0.00044647,5]
[322359531,1712964645866,-150.0,0.00044676,2]
[322359532,1712964645876,-150.0,0.00044678,2]
[322359533,1712964645885,-150.0,0.00044694,2]
[322359534,1712964645894,-150.0,0.00044708,2]
[322359535,1712964645904,-150.0,0.00044753,2]
[322359536,1712964645913,-157.041308,0.00044798,48]
[322359537,1712964645922,-1500.0,0.00044834,2]
[322359538,1712964645932,-150.0,0.00044873,2]
[322359539,1712964645941,-150.0,0.00044878,2]
[322359540,1712964645950,-150.0,0.0004489,2]
[322359541,1712964645959,-305.58,0.00044903,2]
[322359542,1712964645968,-150.0,0.00044919,2]
[322359543,1712964645978,-170.49660245,0.00045,7]
[322359544,1712964645987,-1300.0,0.00045,3]
[322359545,1712964645997,-165147.84037794,0.00045,30]
[322359546,1712964646006,-150.0,0.00045005,2]
[322359547,1712964646015,-150.0,0.00045031,2]
[322359548,1712964646024,-522.08412547,0.00045064,2]
[322359549,1712964646032,-2065.62527197,0.00045077,2]
[322359550,1712964646042,-150.0,0.00045083,2]
[322359551,1712964646052,-150.0,0.00045089,2]
[322359552,1712964646061,-1300.20934483,0.00045109,2]
[322359553,1712964646070,-150.0,0.00045111,2]
[322359554,1712964646080,-150.0,0.00045141,2]
[322359555,1712964646089,-150.0,0.00045159,2]
[322359556,1712964646097,-161.041308,0.00045198,47]
[322359557,1712964646106,-150.0,0.00045198,2]
[322359558,1712964646115,-153.90252399,0.00045218,30]
[322359559,1712964646124,-1500.0,0.00045229,2]
[322359560,1712964646133,-1500.0,0.00045234,2]
[322359561,1712964646143,-1500.0,0.00045271,2]
[322359562,1712964646152,-230.4806913,0.00045301,2]
[322359563,1712964646162,-150.0,0.00045314,2]
[322359564,1712964646171,-315.95661728,0.00045324,2]
[322359565,1712964646181,-77399.88393152,0.00045348,19]
[322359566,1712964646191,-150.0,0.00045351,2]
[322359567,1712964646200,-301.13134409,0.000454,2]
[322359568,1712964646209,-150.0,0.00045401,2]
[322359569,1712964646218,-167.58516636,0.00045404,30]
[322359570,1712964646226,-163.61608941,0.00045419,2]
[322359571,1712964646236,-150.0,0.00045426,2]
[322359572,1712964646245,-300.0,0.00045439,2]
[322359573,1712964646254,-150.0,0.00045485,2]
[322359574,1712964646264,-161.041308,0.00045498,52]
[322359575,1712964646273,-150.0,0.000455,8]
[322359576,1712964646282,-150.0,0.00045514,2]
[322359577,1712964646291,-150.0,0.00045516,2]
[322359578,1712964646300,-156.69386508,0.00045524,3]
[322359579,1712964646309,-1500.0,0.00045553,2]
[322359580,1712964646318,-150.0,0.00045555,2]
[322359581,1712964646328,-150.0,0.00045558,2]
[322359582,1712964646337,-150.0,0.00045599,60]
[322359583,1712964646347,-344.58,0.000456,5]
[322359584,1712964646356,-344.58,0.000456,5]
[322359585,1712964646365,-344.58,0.000456,5]
[322359586,1712964646374,-344.58,0.000456,5]
[322359587,1712964646384,-344.58,0.000456,5]
[322359588,1712964646393,-344.58,0.000456,5]
[322359589,1712964646402,-344.58,0.000456,5]
[322359590,1712964646412,-344.58,0.000456,5]
[322359591,1712964646421,-344.58,0.000456,5]
[322359592,1712964646431,-344.58,0.000456,5]
[322359593,1712964646440,-344.58,0.000456,5]
[322359594,1712964646450,-344.58,0.000456,5]
[322359595,1712964646460,-344.58,0.000456,5]
[322359596,1712964646469,-344.58,0.000456,5]
[322359597,1712964646479,-344.58,0.000456,5]
[322359598,1712964646489,-344.58,0.000456,5]
[322359599,1712964646498,-344.58,0.000456,5]
[322359600,1712964646507,-344.58,0.000456,5]
[322359601,1712964646516,-344.58,0.000456,5]
[322359602,1712964646525,-344.58,0.000456,5]
[322359603,1712964646535,-1500.0,0.00045601,2]
[322359604,1712964646544,-150.0,0.00045614,2]
[322359605,1712964646554,-200.0,0.00045616,25]
[322359606,1712964646564,-1000.0,0.00045616,50]
[322359607,1712964646573,-500.0,0.00045616,30]
[322359608,1712964646582,-150.0,0.00045617,2]
[322359609,1712964646592,-1500.0,0.00045621,2]
[322359610,1712964646601,-150.0,0.00045622,2]
[322359611,1712964646610,-150.0,0.00045625,2]
[322359612,1712964646619,-1500.0,0.00045639,2]
[322359613,1712964646629,-150.0,0.00045639,2]
[322359614,1712964646639,-150.0,0.00045648,2]
[322359615,1712964646649,-150.0,0.00045654,2]
[322359616,1712964646658,-150.0,0.00045656,2]
[322359617,1712964646667,-150.0,0.00045672,2]
[322359618,1712964646677,-150.0,0.00045694,2]
[322359619,1712964646686,-150.0,0.00045695,2]
[322359620,1712964646695,-150.0,0.0004572,2]
[322359621,1712964646704,-150.0,0.00045736,2]
[322359622,1712964646713,-150.57288398,0.00045744,30]
[322359623,1712964646723,-150.0,0.00045761,2]
[322359624,1712964646732,-150.0,0.00045767,2]
[322359625,1712964646742,-150.0,0.0004578,2]
[322359626,1712964646751,-161.041308,0.00045798,49]
[322359627,1712964646760,-300.0,0.00045798,2]
[322359628,1712964646769,-1000.0,0.000458,7]
[322359629,1712964646782,-150.0,0.00045804,2]
[322359630,1712964646792,-150.0,0.00045806,2]
[322359631,1712964646801,-1500.0,0.00045807,2]
[322359632,1712964646810,-1500.0,0.00045813,2]
[322359633,1712964646819,-150.0,0.00045835,2]
[322359634,1712964646828,-150.0,0.00045838,2]
[322359635,1712964646837,-150.0,0.00045845,2]
[322359636,1712964646846,-150.0,0.00045857,2]
[322359637,1712964646857,-150.0,0.00045875,2]
[322359638,1712964646867,-1024.36938133,0.00045879,21]
[322359639,1712964646876,-150.0,0.00045886,2]
[322359640,1712964646886,-479.0,0.000459,33]
[322359641,1712964646895,-381.0,0.000459,22]
[322359642,1712964646905,-150.0,0.000459,53]
[322359643,1712964646913,-1000.0,0.000459,7]
[322359644,1712964646923,-150.0,0.00045906,2]
[322359645,1712964646932,-152.88340361,0.00045941,29]
[322359646,1712964646941,-150.0,0.00045955,2]
[322359647,1712964646950,-1500.0,0.00045965,2]
[322359648,1712964646959,-150.0,0.00045974,2]
[322359649,1712964646968,-152.71096071,0.00045976,2]
[322359650,1712964646977,-18614.2003588,0.00045979,2]
[322359651,1712964646986,-80515.13662634,0.00045979,2]
[322359652,1712964647004,-67580.25946352,0.00045979,2]
[322359653,1712964647015,-1050.49100998,0.00045979,2]
[322359654,1712964647035,-836.60016149,0.00045979,2]
[322359655,1712964647062,-6276.86601048,0.00045979,2]
[322359656,1712964647073,-3176.26900289,0.00045979,2]
[322359657,1712964647083,-193.0576741,0.00045979,2]
[322359658,1712964647093,-150.0,0.00045981,2]
[322359659,1712964647102,-206.80791795,0.00045983,2]
[322359660,1712964647111,-5832.36659362,0.00045983,2]
[322359661,1712964647121,-1440.59158143,0.00045984,4]
[322359662,1712964647130,-422.51258,0.00045984,30]
[322359663,1712964647140,-200.0,0.00045986,7]
[322359664,1712964647149,-1624.45661521,0.00046,10]
[322359665,1712964647205,-8375.54338479,0.00046,10]
[322359666,1712964647214,-650.257165,0.00046,47]
[322359667,1712964647223,-150.0,0.00046,8]
[322359668,1712964647232,-152.0,0.00046007,7]
[322359669,1712964647242,-8463.4251877,0.0004601,2]
[322359670,1712964647251,-1000.0,0.000461,7]
[322359671,1712964647260,-1153.90839342,0.00046192,2]
[322359672,1712964647269,-152.81,0.00046194,15]
[322359673,1712964647278,-47882.69473394,0.00046195,7]
[322359674,1712964647289,-52711.35997603,0.00046195,7]
[322359675,1712964647424,-34594.6216228,0.00046195,7]
[322359676,1712964647433,-1153.90839342,0.00046197,2]
[322359677,1712964647442,-28534.18682222,0.00046198,14]
[322359678,1712964648024,-263.63284643,0.00025,7]
[322359679,1712964648225,-0.14380124,0.00025,7]
[322359689,1712965831749,-531.41244433,0.0001984,2]
[322359690,1712965831759,-287.80437565,0.00019841,2]
[322359691,1712965831769,-364.99752473,0.00019841,2]
[322359692,1712965831779,-2208.84501361,0.00021,2]
[322359693,1712965831788,-162.09,0.00021918,2]
[322359694,1712965831798,-783.91365264,0.00022999,2]
[322359695,1712965831807,-750.0,0.00023,3]
[322359696,1712965831816,-70.29295851,0.00025,7]
[322359697,1712965831826,-800.0,0.00025,3]
[322359698,1712965831836,-155.0,0.00025,2]
[322359699,1712965831845,-562.83036389,0.00025,2]
[322359700,1712965831855,-474.9,0.00025782,2]
[322359701,1712965831865,-622.44,0.00025782,2]
[322359702,1712965831877,-3160.92864505,0.00026265,2]
[322359703,1712965831888,-850.0,0.00027,3]
[322359704,1712965831898,-242.40733193,0.00027237,2]
[322359705,1712965832088,-199.90692644,0.00027314,2]
[322359706,1712965832097,-160.73226689,0.00027321,2]
[322359707,1712965832108,-154.73038889,0.00027333,2]
[322359708,1712965832117,-1842.95,0.00027341,2]
[322359709,1712965832127,-500.0,0.00027359,2]
[322359710,1712965832141,-261.86179938,0.00027395,2]
[322359711,1712965832150,-155.0,0.00027395,2]
[322359712,1712965832159,-150.77,0.00027397,2]
[322359713,1712965832168,-232.08,0.00027397,2]
[322359714,1712965832178,-250.0,0.00027447,2]
[322359715,1712965832187,-154.73038889,0.00027596,2]
[322359716,1712965832196,-160.72,0.00027625,2]
[322359717,1712965832206,-250.0,0.00027646,2]
[322359718,1712965832214,-155.0,0.00027648,2]
[322359719,1712965832223,-16388.75191917,0.00027649,2]
[322359720,1712965832247,-4287.92,0.00027649,2]
[322359721,1712965832258,-469.17,0.00027649,2]
[322359722,1712965832446,-1334.33793605,0.00027649,2]
[322359727,1712965832487,-1419.82014478,0.00027649,2]
[322359729,1712965832496,-242.40733193,0.0002766,2]
[322359731,1712965832506,-241.11,0.00027682,4]
[322359734,1712965832515,-1000.0,0.00027688,2]
[322359736,1712965832523,-156.25990877,0.00027713,2]
[322359738,1712965832533,-500.0,0.0002773,2]
[322359740,1712965832542,-250.0,0.00027731,2]
[322359741,1712965832551,-161.37,0.00027748,2]
[322359742,1712965832560,-156.46012929,0.00027753,2]
[322359743,1712965832569,-168.8816447,0.0002795,2]
[322359744,1712965832578,-1547.40358542,0.00028036,2]
[322359745,1712965832589,-622.44,0.00028046,2]
[322359746,1712965832598,-156.07725532,0.00028125,2]
[322359747,1712965832608,-161.73578536,0.00028149,2]
[322359748,1712965832618,-199.90692644,0.00028164,2]
[322359749,1712965832628,-154.90408122,0.00028208,2]
[322359750,1712965832639,-199.90692644,0.00028316,2]
[322359751,1712965832651,-160.72,0.00028345,2]
[322359752,1712965832660,-522.08412547,0.00028417,2]
[322359753,1712965832670,-168.65,0.00028513,2]
[322359754,1712965832679,-158.76931413,0.00028566,2]
[322359755,1712965832688,-303.5158865,0.00028582,2]
[322359756,1712965832697,-199.90692644,0.00028602,2]
[322359757,1712965832706,-154.73038889,0.0002862,2]
[322359758,1712965832716,-156.25990877,0.00028657,2]
[322359759,1712965832726,-156.07725532,0.00028669,2]
[322359760,1712965832734,-156.39421651,0.00028685,2]
[322359761,1712965832745,-153.34610378,0.0002869,2]
[322359762,1712965832755,-161.16450246,0.0002879,2]
[322359763,1712965832764,-268.549,0.00028899,2]
[322359764,1712965832773,-1440.59158143,0.00028998,2]
[322359765,1712965832782,-155.0,0.00028999,2]
[322359766,1712965832792,-14061.65239236,0.00028999,2]
[322359767,1712965832802,-300.99041887,0.00028999,2]
[322359768,1712965832812,-529.99308439,0.00028999,2]
[322359769,1712965832821,-900.0,0.00029,3]
[322359770,1712965832831,-6746.82289371,0.00029,2]
[322359771,1712965832841,-156.39421651,0.00029019,2]
[322359772,1712965832850,-160.72,0.00029065,2]
[322359773,1712965832859,-156.39421651,0.00029183,2]
[322359774,1712965832868,-400.0,0.00029288,2]
[322359775,1712965832877,-166.80797735,0.00029312,2]
[322359776,1712965832888,-800.0,0.00029315,2]
[322359777,1712965832897,-199.90692644,0.00029347,2]
[322359778,1712965832906,-800.0,0.00029479,2]
[322359779,1712965832915,-441.9821801,0.000295,3]
[322359780,1712965832924,-199.90692644,0.00029582,2]
[322359781,1712965832933,-800.0,0.00029616,2]
[322359782,1712965832942,-303.5158865,0.00029671,2]
[322359783,1712965832951,-242.40733193,0.00029678,2]
[322359784,1712965832960,-157.37244982,0.00029709,2]
[322359785,1712965832970,-303.5158865,0.00029848,2]
[322359786,1712965832978,-1402.03542154,0.000299,2]
[322359787,1712965832988,-2380.29993978,0.000299,2]
[322359788,1712965832997,-207.84642371,0.000299,4]
[322359789,1712965833006,-319.67637673,0.000299,2]
[322359790,1712965833015,-168545.31612264,0.00029999,2]
[322359794,1712965837727,-1000.0,0.00027,2]
[322359795,1712965837737,-114857.24222634,0.00029999,2]
[322359796,1712965837749,-719.57,0.00029999,2]
[322359797,1712965837780,-107191.72992105,0.00029999,2]
[322359854,1712965838727,-7197.45499444,0.00029999,2]
[322359904,1712965839675,-745.0,0.00029999,2]
[322359905,1712965839838,-1914.37118348,0.00029999,2]
[322359906,1712965839851,-2203.25448303,0.00029999,2]
[322359907,1712965839864,-1305.5043251,0.00029999,2]
[322359908,1712965839876,-1781.12456743,0.00029999,2]
[322359909,1712965839888,-3595.22,0.00029999,2]
[322359924,1712965843521,-89944.21217649,0.00029999,2]
[322359925,1712965843531,-1144.26001757,0.0003,4]
[322359926,1712965843541,-405.6958138,0.0003,4]
[322359927,1712965843552,-19317.09856153,0.0003,4]
[322359928,1712965843561,-224.37683634,0.0003,4]
[322359929,1712965843570,-16898.29816228,0.0003,3]
[322359930,1712965843579,-157.4580633,0.0003,4]
[322359931,1712965843589,-5670.09115742,0.0003,2]
[322359932,1712965843598,-6941.74361707,0.0003,2]
[322359933,1712965843607,-500.0,0.0003,3]
[322359934,1712965843617,-156.46012929,0.00030005,7]
[322359935,1712965843628,-176.80854381,0.00030016,7]
[322359937,1712965843638,-1842.95,0.00030081,2]
[322359938,1712965843651,-5000.0,0.000301,4]
[322359941,1712965843661,-153.00455983,0.00030158,7]
[322359943,1712965843671,-622.44,0.0003031,2]
[322359945,1712965843680,-175.8,0.0003041,2]
[322359946,1712965843689,-180.0,0.0003051,2]
[322359947,1712965843698,-166.66666668,0.00030543,7]
[322359948,1712965843707,-303.5158865,0.00030577,7]
[322359949,1712965843716,-156.39421651,0.00030606,7]
[322359950,1712965843725,-156.39167569,0.000307,4]
[322359951,1712965843735,-156.07725532,0.00030832,7]
[322359952,1712965843744,-156.39421651,0.00030869,7]
[322359953,1712965843754,-303.5158865,0.00030887,7]
[322359954,1712965843763,-490.8694946,0.00031,4]
[322359955,1712965843773,-950.0,0.00031,3]
[322359956,1712965843782,-154.90408122,0.00031076,7]
[322359957,1712965843792,-1000.0,0.00031149,2]
[322359958,1712965843802,-177.59700813,0.00031163,7]
[322359959,1712965843812,-160.73226689,0.0003117,7]
[322359960,1712965843821,-199.90692644,0.00031365,7]
[322359961,1712965843831,-242.40733193,0.00031493,7]
[322359962,1712965843842,-163.4681833,0.00031615,7]
[322359963,1712965843851,-177.46,0.00031644,2]
[322359964,1712965843861,-154.73038889,0.00031707,7]
[322359965,1712965843871,-156.46012929,0.00031717,7]
[322359966,1712965843880,-153.90252396,0.00031828,7]
[322359967,1712965843890,-153.90252396,0.00031973,7]
[322359968,1712965843900,-1402.03542149,0.00031998,2]
[322359969,1712965843910,-2380.29993969,0.00031998,2]
[322359970,1712965843919,-332.19736298,0.00032,4]
[322359971,1712965843928,-154.90408122,0.00032091,7]
[322359972,1712965843938,-303.5158865,0.00032204,7]
[322359973,1712965843947,-154.90408122,0.00032252,7]
[322359974,1712965843956,-161.73578536,0.00032257,7]
[322359975,1712965843965,-161.73578536,0.00032347,7]
[322359976,1712965843975,-207.84642367,0.00032385,6]
[322359977,1712965843984,-154.73038889,0.0003243,7]
[322359978,1712965843995,-154.90408122,0.00032508,7]
[322359979,1712965844005,-156.25990877,0.00032518,7]
[322359980,1712965844015,-622.44,0.00032574,2]
[322359981,1712965844024,-611.07740058,0.000326,20]
[322359982,1712965844033,-3612.38,0.00032603,2]
[322359983,1712965844042,-2616.65,0.00032603,2]
[322359984,1712965844052,-154.90408122,0.00032771,7]
[322359985,1712965844061,-1842.95,0.0003282,2]
[322359986,1712965844070,-199.90692644,0.00032851,7]
[322359987,1712965844080,-536.0,0.00032876,2]
[322359988,1712965844089,-521.0,0.00032876,2]
[322359989,1712965844098,-152.17,0.00032877,2]
[322359990,1712965844107,-156.39421651,0.00032902,7]
[322359991,1712965844117,-1000.0,0.00033,3]
[322359992,1712965844130,-157.42754868,0.00033061,7]
[322359993,1712965844140,-232.08,0.00033165,2]
[322359994,1712965844150,-200.0,0.00033277,10]
[322359995,1712965844159,-160.33,0.00033309,2]
[322359996,1712965844169,-153.34610378,0.00033563,7]
[322359997,1712965844178,-153.19445823,0.00033599,7]
[322359998,1712965844189,-199.90692644,0.00033759,7]
[322359999,1712965844198,-242.40733193,0.00033862,7]
[322360000,1712965844209,-303.5158865,0.00033895,7]
[322360001,1712965844219,-1868.94,0.000339,2]
[322360002,1712965844228,-1868.94,0.000339,2]
[322360003,1712965844238,-1868.94,0.000339,2]
[322360004,1712965844247,-1868.94,0.000339,2]
[322360005,1712965844256,-1868.94,0.000339,2]
[322360006,1712965844265,-1868.94,0.000339,2]
[322360007,1712965844274,-1868.94,0.000339,2]
[322360008,1712965844284,-1868.94,0.000339,2]
[322360009,1712965844294,-1868.94,0.000339,2]
[322360010,1712965844303,-1868.94,0.000339,2]
[322360011,1712965844312,-1868.94,0.000339,2]
[322360012,1712965844322,-1868.94,0.000339,2]
[322360013,1712965844331,-1868.94,0.000339,2]
[322360014,1712965844341,-1868.94,0.000339,2]
[322360015,1712965844351,-1868.94,0.000339,2]
[322360016,1712965844360,-1868.94,0.000339,2]
[322360017,1712965844369,-1868.94,0.000339,2]
[322360018,1712965844378,-1868.94,0.000339,2]
[322360019,1712965844387,-1868.94,0.000339,2]
[322360020,1712965844399,-1868.94,0.000339,2]
[322360021,1712965844408,-154.33,0.000339,2]
[322360022,1712965844418,-154.33,0.000339,2]
[322360023,1712965844427,-154.33,0.000339,2]
[322360024,1712965844436,-154.33,0.000339,2]
[322360025,1712965844445,-303.5158865,0.00033913,7]
[322360026,1712965844454,-3297.0,0.00033973,30]
[322360027,1712965844463,-1402.03542149,0.00034096,2]
[322360028,1712965844472,-2380.29993969,0.00034096,2]
[322360029,1712965844482,-2160.71813088,0.00034099,2]
[322360030,1712965844491,-536.0,0.00034109,2]
[322360031,1712965844500,-521.0,0.00034109,2]
[322360032,1712965844510,-158.14981821,0.00034162,7]
[322360033,1712965844519,-436.39,0.00034247,2]
[322360034,1712965844528,-153.00455983,0.00034352,7]
[322360035,1712965844538,-156.39421651,0.00034372,7]
[322360036,1712965844547,-153.00455983,0.00034386,7]
[322360037,1712965844557,-153.90252396,0.0003441,7]
[322360038,1712965844566,-154.73038889,0.00034444,7]
[322360039,1712965844576,-242.40733193,0.00034447,7]
[322360040,1712965844586,-303.5158865,0.00034507,7]
[322360041,1712965844596,-150.0,0.00034548,10]
[322360042,1712965844605,-161.73578536,0.00034588,7]
[322360043,1712965844615,-1000.0,0.0003461,2]
[322360044,1712965844624,-199.90692644,0.00034644,7]
[322360045,1712965844634,-150.77,0.00034703,2]
[322360046,1712965844646,-242.40733193,0.00034728,7]
[322360047,1712965844655,-156.39421651,0.00034788,7]
[322360048,1712965844664,-161.73578536,0.00034831,7]
[322360049,1712965844672,-622.44,0.00034837,2]
[322360050,1712965844682,-156.39421651,0.00034867,7]
[322360051,1712965844691,-207.84642367,0.00034871,7]
[322360052,1712965844700,-1700.0,0.000349,12]
[322360053,1712965844709,-1069.16993092,0.00034945,7]
[322360054,1712965844719,-155.0,0.00035,4]
[322360055,1712965844728,-1050.0,0.00035,3]
[322360056,1712965844738,-402.2,0.00035,120]
[322360057,1712965844747,-153.00455983,0.0003504,7]
[322360058,1712965844756,-154.90408122,0.00035043,7]
[322360059,1712965844766,-153.19445825,0.00035059,7]
[322360060,1712965844775,-162.28190367,0.00035252,7]
[322360061,1712965844785,-602.22,0.00035288,15]
[322360062,1712965844794,-536.0,0.00035342,2]
[322360063,1712965844803,-521.0,0.00035342,2]
[322360064,1712965844813,-156.39421651,0.00035372,7]
[322360065,1712965844823,-199.90692644,0.0003551,7]
[322360066,1712965844833,-156.39421651,0.00035525,7]
[322360067,1712965844843,-156.46012929,0.00035616,7]
[322360068,1712965844852,-2445.0,0.00035626,4]
[322360069,1712965844862,-2445.0,0.00035626,4]
[322360070,1712965844871,-2445.0,0.00035626,4]
[322360071,1712965844880,-2445.0,0.00035626,4]
[322360072,1712965844889,-2445.0,0.00035626,4]
[322360073,1712965844900,-2445.0,0.00035626,4]
[322360074,1712965844910,-2543.0,0.00035661,4]
[322360075,1712965844919,-242.40733193,0.0003568,7]
[322360076,1712965844928,-154.73038889,0.00035682,7]
[322360077,1712965844938,-5316.07746593,0.00035735,2]